[Event "Live Chess"]
[Site "Chess.com"]
[Date "2024.06.02"]
[Round "-"]
[White "Yegorych"]
[Black "CarmelJane"]
[Result "0-1"]
[WhiteElo "1542"]
[BlackElo "2079"]
[TimeControl "300"]
[EndTime "16:51:49 PDT"]
[Termination "CarmelJane won on time"]

1. d4 {[%clk 0:04:51.3]} 1... Nf6 {[%clk 0:04:58.5]} 2. c4 {[%clk 0:04:48.5]}
2... e6 {[%clk 0:04:58.1]} 3. Nc3 {[%clk 0:04:47.1]} 3... Bb4 {[%clk 0:04:56.6]}
4. Bg5 {[%clk 0:04:45.7]} 4... h6 {[%clk 0:04:55.3]} 5. Bxf6 {[%clk 0:04:44]}
5... Qxf6 {[%clk 0:04:54.4]} 6. Nf3 {[%clk 0:04:39.6]} 6... O-O {[%clk
0:04:49.1]} 7. e3 {[%clk 0:04:38.1]} 7... b6 {[%clk 0:04:48]} 8. Be2 {[%clk
0:04:35.7]} 8... Bb7 {[%clk 0:04:44]} 9. O-O {[%clk 0:04:32.2]} 9... c5 {[%clk
0:04:41.9]} 10. a3 {[%clk 0:04:12.5]} 10... cxd4 {[%clk 0:04:35.1]} 11. exd4
{[%clk 0:03:56.1]} 11... Bd6 {[%clk 0:04:25.8]} 12. d5 {[%clk 0:03:49.6]} 12...
Bc7 {[%clk 0:03:50]} 13. Rc1 {[%clk 0:03:33.1]} 13... Na6 {[%clk 0:03:37.8]} 14.
b4 {[%clk 0:03:28.8]} 14... Bf4 {[%clk 0:03:31.8]} 15. Rc2 {[%clk 0:03:13.6]}
15... Rac8 {[%clk 0:03:30.5]} 16. Ne4 {[%clk 0:03:07.9]} 16... Qd8 {[%clk
0:03:19.3]} 17. Ng3 {[%clk 0:02:52.9]} 17... Nc7 {[%clk 0:02:53.8]} 18. d6
{[%clk 0:02:39.5]} 18... Ne8 {[%clk 0:02:51.5]} 19. c5 {[%clk 0:02:30]} 19...
bxc5 {[%clk 0:02:46.6]} 20. bxc5 {[%clk 0:02:25]} 20... Bc6 {[%clk 0:02:41.6]}
21. Rc4 {[%clk 0:02:15.4]} 21... Bb5 {[%clk 0:02:36.6]} 22. Rxf4 {[%clk
0:02:11.5]} 22... Bxe2 {[%clk 0:02:33.1]} 23. Qxe2 {[%clk 0:02:11.4]} 23... Rc6
{[%clk 0:02:32.2]} 24. Qe5 {[%clk 0:01:52.9]} 24... Nf6 {[%clk 0:02:21.2]} 25.
Ne4 {[%clk 0:01:48.3]} 25... Nd5 {[%clk 0:02:15.1]} 26. Rg4 {[%clk 0:01:42.2]}
26... f6 {[%clk 0:02:14.1]} 27. Qh5 {[%clk 0:01:35.6]} 27... f5 {[%clk 0:02:13]}
28. Rg6 {[%clk 0:01:24.7]} 28... Nf4 {[%clk 0:01:53.6]} 29. Qxh6 {[%clk
0:01:06]} 29... Nxg6 {[%clk 0:01:51.9]} 30. Qxg6 {[%clk 0:01:02.4]} 30... Rf6
{[%clk 0:01:23.4]} 31. Nxf6+ {[%clk 0:00:59.6]} 31... Qxf6 {[%clk 0:01:21.4]}
32. Qxf6 {[%clk 0:00:57.6]} 32... gxf6 {[%clk 0:01:21.3]} 33. Rc1 {[%clk
0:00:56.3]} 33... Ra6 {[%clk 0:01:19.3]} 34. Rc3 {[%clk 0:00:54.2]} 34... Ra4
{[%clk 0:01:16.5]} 35. h4 {[%clk 0:00:52]} 35... e5 {[%clk 0:01:14.9]} 36. h5
{[%clk 0:00:41.6]} 36... e4 {[%clk 0:01:14.5]} 37. Nd2 {[%clk 0:00:38.8]} 37...
Rd4 {[%clk 0:01:13.6]} 38. Rg3+ {[%clk 0:00:28.6]} 38... Kf7 {[%clk 0:01:10.3]}
39. Nb3 {[%clk 0:00:26.9]} 39... Rd1+ {[%clk 0:01:05.3]} 40. Kh2 {[%clk
0:00:25.4]} 40... f4 {[%clk 0:01:05.2]} 41. Rg4 {[%clk 0:00:21.5]} 41... e3
{[%clk 0:01:04]} 42. fxe3 {[%clk 0:00:20]} 42... fxe3 {[%clk 0:01:03.7]} 43. Rf4
{[%clk 0:00:16.1]} 43... Rd3 {[%clk 0:01:03.3]} 44. Nc1 {[%clk 0:00:13.7]} 44...
Rd1 {[%clk 0:01:02.2]} 45. Ne2 {[%clk 0:00:12.1]} 45... Rd2 {[%clk 0:01:01.8]}
46. Ng3 {[%clk 0:00:10.4]} 46... e2 {[%clk 0:01:01.2]} 47. Re4 {[%clk
0:00:06.7]} 47... a5 {[%clk 0:00:54]} 48. Rxe2 {[%clk 0:00:05.7]} 48... Rd3
{[%clk 0:00:53.3]} 49. a4 {[%clk 0:00:04.1]} 49... Rd5 {[%clk 0:00:48.6]} 50. h6
{[%clk 0:00:04]} 50... Kg6 {[%clk 0:00:47.2]} 51. h7 {[%clk 0:00:03.9]} 51...
Kxh7 {[%clk 0:00:46]} 52. Kg1 {[%clk 0:00:03.8]} 52... Kg6 {[%clk 0:00:45.4]}
53. Re3 {[%clk 0:00:02.3]} 53... Rd1+ {[%clk 0:00:44.5]} 54. Kf2 {[%clk
0:00:01]} 54... Ra1 {[%clk 0:00:44.4]} 55. Ne2 {[%clk 0:00:00.4]} 55... Rxa4
{[%clk 0:00:43]} 56. Rg3+ {[%clk 0:00:00.3]} 56... Kf7 {[%clk 0:00:41.6]} 0-1

[Event "Live Chess"]
[Site "Chess.com"]
[Date "2024.06.02"]
[Round "-"]
[White "bear856"]
[Black "gobbles19"]
[Result "1-0"]
[WhiteElo "2414"]
[BlackElo "2261"]
[TimeControl "300"]
[EndTime "16:52:09 PDT"]
[Termination "bear856 won by resignation"]

1. d4 {[%clk 0:04:57]} 1... Nf6 {[%clk 0:04:58.7]} 2. Nf3 {[%clk 0:04:54.5]}
2... e6 {[%clk 0:04:57.8]} 3. c4 {[%clk 0:04:52.5]} 3... c5 {[%clk 0:04:57]} 4.
e3 {[%clk 0:04:50.2]} 4... Be7 {[%clk 0:04:55]} 5. Nc3 {[%clk 0:04:48.5]} 5...
O-O {[%clk 0:04:53.5]} 6. d5 {[%clk 0:04:47]} 6... exd5 {[%clk 0:04:52.3]} 7.
cxd5 {[%clk 0:04:46.1]} 7... d6 {[%clk 0:04:52]} 8. h3 {[%clk 0:04:43.1]} 8...
a6 {[%clk 0:04:46.4]} 9. a4 {[%clk 0:04:41.4]} 9... a5 {[%clk 0:04:45.8]} 10. e4
{[%clk 0:04:39.2]} 10... Na6 {[%clk 0:04:45]} 11. Bc4 {[%clk 0:04:35.6]} 11...
Nb4 {[%clk 0:04:43.6]} 12. O-O {[%clk 0:04:34.3]} 12... Re8 {[%clk 0:04:41.7]}
13. Bf4 {[%clk 0:04:30.5]} 13... Bf8 {[%clk 0:04:29.6]} 14. Re1 {[%clk
0:04:27.1]} 14... g6 {[%clk 0:04:09.8]} 15. Qd2 {[%clk 0:04:23.5]} 15... Nh5
{[%clk 0:04:06.8]} 16. Bh2 {[%clk 0:04:19.4]} 16... Bg7 {[%clk 0:03:59.7]} 17.
e5 {[%clk 0:04:08.9]} 17... dxe5 {[%clk 0:03:54.2]} 18. Nxe5 {[%clk 0:04:02.7]}
18... Nf6 {[%clk 0:03:50.4]} 19. d6 {[%clk 0:03:54]} 19... Be6 {[%clk 0:03:48]}
20. Rad1 {[%clk 0:03:42.8]} 20... Nd7 {[%clk 0:03:30.7]} 21. Bb5 {[%clk
0:03:32.9]} 21... Nxe5 {[%clk 0:03:21.4]} 22. Bxe5 {[%clk 0:03:30.4]} 22... Bxe5
{[%clk 0:03:16.9]} 23. Rxe5 {[%clk 0:03:29.1]} 23... Rf8 {[%clk 0:03:13.5]} 24.
Qe3 {[%clk 0:03:19.9]} 24... b6 {[%clk 0:03:02.7]} 25. Ne4 {[%clk 0:02:38.4]}
25... Nc2 {[%clk 0:02:53.5]} 26. Qf4 {[%clk 0:02:22.6]} 26... Nd4 {[%clk
0:02:45.6]} 27. Ng5 {[%clk 0:01:49.6]} 27... Bb3 {[%clk 0:02:27.3]} 28. Rxd4
{[%clk 0:01:40.9]} 28... cxd4 {[%clk 0:02:26.2]} 29. Qxd4 {[%clk 0:01:39.1]}
29... Rc8 {[%clk 0:02:04.6]} 30. Re7 {[%clk 0:01:28.1]} 30... h6 {[%clk
0:01:49.2]} 31. Ne4 {[%clk 0:01:21.6]} 31... Be6 {[%clk 0:01:39.3]} 32. Nf6+
{[%clk 0:01:18]} 32... Kh8 {[%clk 0:01:32.4]} 33. Ne8+ {[%clk 0:01:00.3]} 1-0

[Event "Live Chess"]
[Site "Chess.com"]
[Date "2024.06.02"]
[Round "-"]
[White "Duke_of_Bebington"]
[Black "booktrunk"]
[Result "1-0"]
[WhiteElo "1622"]
[BlackElo "1479"]
[TimeControl "300"]
[EndTime "16:52:22 PDT"]
[Termination "Duke_of_Bebington won by resignation"]

1. e4 {[%clk 0:04:57.9]} 1... b6 {[%clk 0:04:54.8]} 2. d4 {[%clk 0:04:51.3]}
2... Bb7 {[%clk 0:04:48.2]} 3. Bd3 {[%clk 0:04:49.2]} 3... e6 {[%clk 0:04:43.8]}
4. Be3 {[%clk 0:04:48.1]} 4... h6 {[%clk 0:04:41.9]} 5. Ne2 {[%clk 0:04:47.1]}
5... Nf6 {[%clk 0:04:40.2]} 6. f3 {[%clk 0:04:45]} 6... Be7 {[%clk 0:04:36.9]}
7. Nbc3 {[%clk 0:04:42.8]} 7... c5 {[%clk 0:04:34.1]} 8. dxc5 {[%clk 0:04:31.9]}
8... Bxc5 {[%clk 0:04:30.9]} 9. Bxc5 {[%clk 0:04:30.5]} 9... bxc5 {[%clk
0:04:29.9]} 10. Bb5 {[%clk 0:04:24]} 10... a6 {[%clk 0:04:26.6]} 11. Ba4 {[%clk
0:04:22.6]} 11... Bc6 {[%clk 0:04:24.7]} 12. Qd6 {[%clk 0:04:12]} 12... Qe7
{[%clk 0:04:20.9]} 13. O-O-O {[%clk 0:04:04.9]} 13... Qxd6 {[%clk 0:04:18.3]}
14. Rxd6 {[%clk 0:04:03.3]} 14... Ke7 {[%clk 0:04:17.5]} 15. Rhd1 {[%clk
0:04:00.7]} 15... Rd8 {[%clk 0:04:16.4]} 16. Bb3 {[%clk 0:03:39.8]} 16... Ne8
{[%clk 0:04:13.8]} 17. R6d2 {[%clk 0:03:36.6]} 17... a5 {[%clk 0:04:09.4]} 18.
a4 {[%clk 0:03:33.8]} 18... Nc7 {[%clk 0:04:01.9]} 19. Nf4 {[%clk 0:03:13.7]}
19... Nba6 {[%clk 0:03:58.3]} 20. Nd3 {[%clk 0:03:11.9]} 20... Nb4 {[%clk
0:03:56.4]} 21. Nxc5 {[%clk 0:03:06.8]} 21... d6 {[%clk 0:03:47.9]} 22. Nd3
{[%clk 0:03:01.2]} 22... f6 {[%clk 0:03:43.2]} 23. Kb1 {[%clk 0:02:45.5]} 23...
Rab8 {[%clk 0:03:37.5]} 24. Ne2 {[%clk 0:02:39.3]} 24... Nca6 {[%clk 0:03:16.3]}
25. Ndc1 {[%clk 0:02:31.8]} 25... Nc5 {[%clk 0:03:11.8]} 26. Na2 {[%clk
0:02:19.5]} 26... Nxb3 {[%clk 0:03:08.1]} 27. cxb3 {[%clk 0:02:17.4]} 27... Nxa2
{[%clk 0:03:06.2]} 28. Kxa2 {[%clk 0:02:16.5]} 28... Rd7 {[%clk 0:03:03.2]} 29.
Rc2 {[%clk 0:02:09.1]} 29... Bb7 {[%clk 0:02:57.7]} 30. Nd4 {[%clk 0:02:03.8]}
30... Ke8 {[%clk 0:02:49]} 31. Nb5 {[%clk 0:02:00.5]} 31... Ba6 {[%clk
0:02:45.4]} 32. Nc7+ {[%clk 0:01:55.6]} 32... Rxc7 {[%clk 0:02:36.2]} 33. Rxc7
{[%clk 0:01:53.7]} 33... Rd8 {[%clk 0:02:34.7]} 34. Rxg7 {[%clk 0:01:50.8]}
34... Be2 {[%clk 0:02:30]} 35. Rc1 {[%clk 0:01:47.5]} 35... Bd3 {[%clk
0:02:25.4]} 36. Rcc7 {[%clk 0:01:44.2]} 1-0

[Event "Live Chess"]
[Site "Chess.com"]
[Date "2024.06.02"]
[Round "-"]
[White "educatedlad"]
[Black "RockTroll"]
[Result "1-0"]
[WhiteElo "1732"]
[BlackElo "2201"]
[TimeControl "300"]
[EndTime "16:52:56 PDT"]
[Termination "educatedlad won by resignation"]

1. d4 {[%clk 0:04:59]} 1... Nf6 {[%clk 0:04:58.6]} 2. Bg5 {[%clk 0:04:56.2]}
2... g6 {[%clk 0:04:56.7]} 3. Bxf6 {[%clk 0:04:54.7]} 3... exf6 {[%clk
0:04:56.6]} 4. c4 {[%clk 0:04:53.9]} 4... d5 {[%clk 0:04:55.8]} 5. cxd5 {[%clk
0:04:51.9]} 5... Qxd5 {[%clk 0:04:55.7]} 6. Nc3 {[%clk 0:04:51.2]} 6... Qd8
{[%clk 0:04:54.8]} 7. g3 {[%clk 0:04:50.8]} 7... c5 {[%clk 0:04:49.8]} 8. dxc5
{[%clk 0:04:47.6]} 8... Qxd1+ {[%clk 0:04:48.2]} 9. Rxd1 {[%clk 0:04:47.5]} 9...
Bxc5 {[%clk 0:04:47.3]} 10. Bh3 {[%clk 0:04:47]} 10... f5 {[%clk 0:04:40]} 11.
Nd5 {[%clk 0:04:44.2]} 11... Na6 {[%clk 0:04:32.8]} 12. Nf6+ {[%clk 0:04:42.2]}
12... Ke7 {[%clk 0:04:30.3]} 13. Nd5+ {[%clk 0:04:39.9]} 13... Kf8 {[%clk
0:04:26.6]} 14. Bg2 {[%clk 0:04:33.2]} 14... Kg7 {[%clk 0:04:23.5]} 15. Nf3
{[%clk 0:04:27.5]} 15... Be6 {[%clk 0:04:22.5]} 16. Nc3 {[%clk 0:04:24.5]} 16...
Bb4 {[%clk 0:04:20.4]} 17. a3 {[%clk 0:04:17.3]} 17... Bxc3+ {[%clk 0:04:18.2]}
18. bxc3 {[%clk 0:04:17.2]} 18... Rac8 {[%clk 0:04:16.8]} 19. Nd4 {[%clk
0:04:16.6]} 19... Rc7 {[%clk 0:04:03.4]} 20. O-O {[%clk 0:04:09.6]} 20... b6
{[%clk 0:03:55.8]} 21. Nb5 {[%clk 0:04:05.9]} 21... Rxc3 {[%clk 0:03:49.2]} 22.
Nxc3 {[%clk 0:04:03.8]} 1-0

[Event "Live Chess"]
[Site "Chess.com"]
[Date "2024.06.02"]
[Round "-"]
[White "wadsy27"]
[Black "GwaryTek"]
[Result "1-0"]
[WhiteElo "2581"]
[BlackElo "1917"]
[TimeControl "300"]
[EndTime "16:53:29 PDT"]
[Termination "wadsy27 won on time"]

1. Nf3 {[%clk 0:04:57.9]} 1... d5 {[%clk 0:04:57.9]} 2. g3 {[%clk 0:04:57]} 2...
c5 {[%clk 0:04:55.6]} 3. Bg2 {[%clk 0:04:56.3]} 3... Nc6 {[%clk 0:04:53.8]} 4.
O-O {[%clk 0:04:55.5]} 4... e5 {[%clk 0:04:52.8]} 5. c4 {[%clk 0:04:55.1]} 5...
d4 {[%clk 0:04:51.6]} 6. d3 {[%clk 0:04:54.7]} 6... Nge7 {[%clk 0:04:50.3]} 7.
e3 {[%clk 0:04:54.3]} 7... Ng6 {[%clk 0:04:49.3]} 8. exd4 {[%clk 0:04:53.6]}
8... cxd4 {[%clk 0:04:49.2]} 9. Re1 {[%clk 0:04:52.3]} 9... Be7 {[%clk
0:04:47.1]} 10. h4 {[%clk 0:04:51.5]} 10... f6 {[%clk 0:04:43.6]} 11. h5 {[%clk
0:04:47.5]} 11... Nf8 {[%clk 0:04:41]} 12. Nh4 {[%clk 0:04:46.5]} 12... Be6
{[%clk 0:04:31.1]} 13. a3 {[%clk 0:04:45.1]} 13... a5 {[%clk 0:04:29.5]} 14. f4
{[%clk 0:04:44.2]} 14... Qd7 {[%clk 0:04:20.7]} 15. Qa4 {[%clk 0:04:21]} 15...
Rb8 {[%clk 0:03:59.3]} 16. Qb5 {[%clk 0:04:05.1]} 16... Bf7 {[%clk 0:02:09.8]}
17. Nf5 {[%clk 0:03:37.2]} 17... Qxf5 {[%clk 0:01:49.2]} 18. Bxc6+ {[%clk
0:03:35.6]} 18... Kd8 {[%clk 0:01:30]} 19. fxe5 {[%clk 0:03:23.7]} 19... Kc8
{[%clk 0:00:51.6]} 20. exf6 {[%clk 0:03:09.3]} 20... Qxb5 {[%clk 0:00:17]} 21.
Bxb5 {[%clk 0:03:07.7]} 21... Bxf6 {[%clk 0:00:16.9]} 22. Bf4 {[%clk 0:03:05.8]}
22... Ra8 {[%clk 0:00:14]} 23. Nd2 {[%clk 0:03:04.7]} 23... Ne6 {[%clk
0:00:12.8]} 24. Ne4 {[%clk 0:03:00.9]} 24... Nxf4 {[%clk 0:00:10.9]} 25. gxf4
{[%clk 0:02:50]} 25... Bh4 {[%clk 0:00:09.3]} 26. Nd6+ {[%clk 0:02:48.5]} 26...
Kc7 {[%clk 0:00:07.1]} 27. Nxf7 {[%clk 0:02:48.1]} 1-0

[Event "Live Chess"]
[Site "Chess.com"]
[Date "2024.06.02"]
[Round "-"]
[White "Queensandpawns"]
[Black "grillage"]
[Result "1-0"]
[WhiteElo "2308"]
[BlackElo "1850"]
[TimeControl "300"]
[EndTime "16:53:34 PDT"]
[Termination "Queensandpawns won by resignation"]

1. e4 {[%clk 0:04:59.3]} 1... d5 {[%clk 0:04:57.8]} 2. Nc3 {[%clk 0:04:57.9]}
2... dxe4 {[%clk 0:04:55.9]} 3. Nxe4 {[%clk 0:04:57.8]} 3... Bf5 {[%clk
0:04:55.2]} 4. Ng5 {[%clk 0:04:56.8]} 4... Nf6 {[%clk 0:04:50.4]} 5. N1f3 {[%clk
0:04:55.9]} 5... c6 {[%clk 0:04:49]} 6. d4 {[%clk 0:04:53]} 6... e6 {[%clk
0:04:46.6]} 7. Ne5 {[%clk 0:04:52.1]} 7... Bg6 {[%clk 0:04:38.6]} 8. h4 {[%clk
0:04:34]} 8... h6 {[%clk 0:04:34.1]} 9. Nxe6 {[%clk 0:04:31.4]} 9... fxe6 {[%clk
0:04:07.6]} 10. Nxg6 {[%clk 0:04:30.5]} 10... Rg8 {[%clk 0:04:05.7]} 11. Be3
{[%clk 0:04:25.3]} 11... Nbd7 {[%clk 0:04:00.5]} 12. Bc4 {[%clk 0:04:24.9]}
12... Qa5+ {[%clk 0:03:43.1]} 13. c3 {[%clk 0:04:23.1]} 13... Qf5 {[%clk
0:03:40.3]} 14. Nf4 {[%clk 0:04:18.1]} 14... Nd5 {[%clk 0:03:18.3]} 15. Bd3
{[%clk 0:04:17.3]} 15... Qf6 {[%clk 0:03:03.9]} 16. Qh5+ {[%clk 0:04:14.8]}
16... Kd8 {[%clk 0:02:58.1]} 17. Nxd5 {[%clk 0:04:14]} 17... exd5 {[%clk
0:02:50.1]} 18. O-O-O {[%clk 0:04:13.9]} 18... Kc7 {[%clk 0:02:36.5]} 19. g4
{[%clk 0:04:12.9]} 19... Bd6 {[%clk 0:02:30.4]} 20. g5 {[%clk 0:04:12]} 20...
hxg5 {[%clk 0:02:28.5]} 21. hxg5 {[%clk 0:04:11.9]} 21... Qf8 {[%clk 0:02:18.1]}
22. Qg6 {[%clk 0:04:06.8]} 22... Re8 {[%clk 0:02:12.5]} 23. Rde1 {[%clk
0:04:06]} 23... Bf4 {[%clk 0:01:57.1]} 24. Qxe8 {[%clk 0:03:59.4]} 24... Qxe8
{[%clk 0:00:51.8]} 25. Bxf4+ {[%clk 0:03:56.7]} 1-0

[Event "Live Chess"]
[Site "Chess.com"]
[Date "2024.06.02"]
[Round "-"]
[White "gobbles19"]
[Black "Plato_77"]
[Result "1-0"]
[WhiteElo "2261"]
[BlackElo "1301"]
[TimeControl "300"]
[EndTime "16:53:36 PDT"]
[Termination "gobbles19 won by resignation"]

1. e4 {[%clk 0:04:57.9]} 1... e6 {[%clk 0:04:56.7]} 2. d4 {[%clk 0:04:55.7]}
2... d5 {[%clk 0:04:53]} 3. Nc3 {[%clk 0:04:55.3]} 3... Bb4 {[%clk 0:04:49.7]}
4. e5 {[%clk 0:04:50.6]} 4... c5 {[%clk 0:04:47.8]} 5. Bd2 {[%clk 0:04:49.3]}
5... cxd4 {[%clk 0:04:45.8]} 6. Nb5 {[%clk 0:04:48.4]} 6... Bxd2+ {[%clk
0:04:40.9]} 7. Qxd2 {[%clk 0:04:48.3]} 7... Qb6 {[%clk 0:04:22.7]} 8. Nd6+
{[%clk 0:04:44.5]} 8... Ke7 {[%clk 0:04:20.5]} 9. Nxc8+ {[%clk 0:04:43.4]} 9...
Kd7 {[%clk 0:04:06.9]} 10. Nxb6+ {[%clk 0:04:43.3]} 10... axb6 {[%clk
0:04:06.3]} 11. Bb5+ {[%clk 0:04:40.5]} 11... Nc6 {[%clk 0:04:04.2]} 12. Nf3
{[%clk 0:04:40.2]} 1-0

[Event "Live Chess"]
[Site "Chess.com"]
[Date "2024.06.02"]
[Round "-"]
[White "Silverback7829"]
[Black "mychess51"]
[Result "0-1"]
[WhiteElo "901"]
[BlackElo "1761"]
[TimeControl "300"]
[EndTime "16:53:43 PDT"]
[Termination "mychess51 won on time"]

1. d4 {[%clk 0:04:56.8]} 1... e6 {[%clk 0:04:59.2]} 2. Nf3 {[%clk 0:04:54.8]}
2... d5 {[%clk 0:04:59.1]} 3. Nc3 {[%clk 0:04:52.9]} 3... Nf6 {[%clk 0:04:59]}
4. Bf4 {[%clk 0:04:50.3]} 4... c6 {[%clk 0:04:58.9]} 5. e3 {[%clk 0:04:44.6]}
5... Bd6 {[%clk 0:04:58.8]} 6. Bd3 {[%clk 0:04:40.8]} 6... Bxf4 {[%clk
0:04:56.9]} 7. exf4 {[%clk 0:04:37.2]} 7... O-O {[%clk 0:04:53.5]} 8. O-O {[%clk
0:04:32.5]} 8... Qb6 {[%clk 0:04:50.5]} 9. Rb1 {[%clk 0:04:22.5]} 9... Nbd7
{[%clk 0:04:46]} 10. Re1 {[%clk 0:04:17.7]} 10... c5 {[%clk 0:04:44.1]} 11. Na4
{[%clk 0:03:57.2]} 11... Qc7 {[%clk 0:04:42.1]} 12. b3 {[%clk 0:03:54.2]} 12...
a6 {[%clk 0:04:37.1]} 13. Nxc5 {[%clk 0:03:48.5]} 13... Nxc5 {[%clk 0:04:35]}
14. dxc5 {[%clk 0:03:45.8]} 14... Qxc5 {[%clk 0:04:34.1]} 15. Qe2 {[%clk
0:03:34.2]} 15... Bd7 {[%clk 0:04:31.1]} 16. Ne5 {[%clk 0:03:27.2]} 16... Be8
{[%clk 0:04:28.2]} 17. Rbc1 {[%clk 0:03:19.1]} 17... Rc8 {[%clk 0:04:20]} 18. f5
{[%clk 0:03:09.3]} 18... h6 {[%clk 0:03:59.4]} 19. fxe6 {[%clk 0:03:01.7]} 19...
fxe6 {[%clk 0:03:58]} 20. Qf3 {[%clk 0:02:46.5]} 20... Ne4 {[%clk 0:03:45.8]}
21. Bxe4 {[%clk 0:02:37.8]} 21... Rxf3 {[%clk 0:03:41.9]} 22. Bxf3 {[%clk
0:02:29.8]} 22... b5 {[%clk 0:03:33.3]} 23. Bg4 {[%clk 0:02:25.5]} 23... Bf7
{[%clk 0:03:27.7]} 24. g3 {[%clk 0:02:07.4]} 24... Rf8 {[%clk 0:03:24.1]} 25.
Nd7 {[%clk 0:02:00.3]} 25... Qb4 {[%clk 0:03:16.9]} 26. Nxf8 {[%clk 0:01:56.2]}
26... Qxg4 {[%clk 0:03:14.8]} 27. Nd7 {[%clk 0:01:47.2]} 27... a5 {[%clk
0:03:07]} 28. Ne5 {[%clk 0:01:42.1]} 28... Qf5 {[%clk 0:03:04]} 29. Nxf7 {[%clk
0:01:33.1]} 29... Kxf7 {[%clk 0:03:02.8]} 30. Kg2 {[%clk 0:01:17.3]} 30... h5
{[%clk 0:03:01.2]} 31. h4 {[%clk 0:01:03]} 31... g5 {[%clk 0:02:58.2]} 32. c4
{[%clk 0:00:48.2]} 32... bxc4 {[%clk 0:02:51.6]} 33. bxc4 {[%clk 0:00:44.7]}
33... gxh4 {[%clk 0:02:49.4]} 34. cxd5 {[%clk 0:00:36.3]} 34... Qxd5+ {[%clk
0:02:46.4]} 35. Kf1 {[%clk 0:00:23.9]} 35... hxg3 {[%clk 0:02:36.1]} 36. Rc7+
{[%clk 0:00:18.4]} 36... Kf6 {[%clk 0:02:28.3]} 37. fxg3 {[%clk 0:00:15.3]}
37... Qf3+ {[%clk 0:02:22.1]} 38. Kg1 {[%clk 0:00:07.7]} 38... Qxg3+ {[%clk
0:02:21.1]} 39. Kh1 {[%clk 0:00:03.5]} 39... Qxe1+ {[%clk 0:02:18]} 0-1

[Event "Live Chess"]
[Site "Chess.com"]
[Date "2024.06.02"]
[Round "-"]
[White "MaksymYurii"]
[Black "TheSmoulderingMaster"]
[Result "0-1"]
[WhiteElo "952"]
[BlackElo "1771"]
[TimeControl "300"]
[EndTime "16:54:12 PDT"]
[Termination "TheSmoulderingMaster won by resignation"]

1. e4 {[%clk 0:04:58.8]} 1... c5 {[%clk 0:04:58.8]} 2. Nf3 {[%clk 0:04:57.9]}
2... d6 {[%clk 0:04:58]} 3. Bc4 {[%clk 0:04:56.8]} 3... Nc6 {[%clk 0:04:56.1]}
4. d4 {[%clk 0:04:27.4]} 4... cxd4 {[%clk 0:04:53.5]} 5. Nxd4 {[%clk 0:04:25.2]}
5... Nf6 {[%clk 0:04:52.6]} 6. Nf3 {[%clk 0:04:22.3]} 6... g6 {[%clk 0:04:51.4]}
7. Bxf7+ {[%clk 0:04:16.7]} 7... Kxf7 {[%clk 0:04:50]} 8. Ng5+ {[%clk
0:04:15.7]} 8... Kg7 {[%clk 0:04:49.3]} 9. e5 {[%clk 0:04:02.8]} 9... Nxe5
{[%clk 0:04:46.3]} 10. f4 {[%clk 0:03:50.9]} 10... Neg4 {[%clk 0:04:40.4]} 11.
h3 {[%clk 0:03:35.9]} 11... h6 {[%clk 0:04:35.4]} 12. hxg4 {[%clk 0:03:31.1]}
12... hxg5 {[%clk 0:04:34.8]} 13. Rxh8 {[%clk 0:03:29.2]} 13... Kxh8 {[%clk
0:04:34]} 14. fxg5 {[%clk 0:03:22.9]} 14... Nxg4 {[%clk 0:04:32.8]} 15. Nc3
{[%clk 0:03:15.5]} 15... Qa5 {[%clk 0:04:28.5]} 16. Bd2 {[%clk 0:03:07.5]} 16...
Qe5+ {[%clk 0:04:25.8]} 17. Qe2 {[%clk 0:03:02]} 17... Qg3+ {[%clk 0:04:22.8]}
18. Kd1 {[%clk 0:02:55.8]} 18... Nf2+ {[%clk 0:04:21.5]} 19. Kc1 {[%clk
0:02:49.9]} 19... Bg4 {[%clk 0:04:17.8]} 20. Qe1 {[%clk 0:02:39.4]} 20... Qxg2
{[%clk 0:04:14.5]} 21. b3 {[%clk 0:02:33.8]} 21... Bg7 {[%clk 0:04:11.6]} 22.
Kb2 {[%clk 0:02:27.6]} 22... Bf5 {[%clk 0:03:54.7]} 23. Qxe7 {[%clk 0:02:07.6]}
23... Ne4 {[%clk 0:03:51.8]} 24. Qxb7 {[%clk 0:01:29.5]} 24... Rc8 {[%clk
0:03:41.5]} 25. Be1 {[%clk 0:00:36.5]} 25... Nxc3 {[%clk 0:03:04.4]} 26. Rc1
{[%clk 0:00:24]} 26... Ne2+ {[%clk 0:02:59]} 27. Ka3 {[%clk 0:00:18.7]} 27...
Qxb7 {[%clk 0:02:51.7]} 0-1